[Event "Titled Tuesday Blitz July 4 Late 2023"]
[White "Hajiyev, Kanan"]
[Black "el_sporco"]
[WhiteFideId "13404148"]
[WhiteElo "2528"]
[BlackElo "2341"]
[Result "0-1"]
[Round "5"]
[TimeControl "180+2"]
[Date "2023.07.04"]
[WhiteClock "0:01:15"]
[BlackClock "0:00:10"]
[Board "99"]

1. d4 {[%clk 0:02:51]}  d5 {[%clk 0:02:50]} 2. c4 {[%clk 0:02:52]}  e6 {[%clk 0:02:50]} 3. cxd5 {[%clk 0:02:53]}  exd5 {[%clk 0:02:50]} 4. Nc3 {[%clk 0:02:54]}  Nf6 {[%clk 0:02:51]} 5. Bg5 {[%clk 0:02:54]}  Be7 {[%clk 0:02:34]} 6. Qc2 {[%clk 0:02:54]}  h6 {[%clk 0:02:33]} 7. Bf4 {[%clk 0:02:53]}  c6 {[%clk 0:02:32]} 8. e3 {[%clk 0:02:54]}  O-O {[%clk 0:02:31]} 9. Bd3 {[%clk 0:02:54]}  Nh5 {[%clk 0:02:29]} 10. Be5 {[%clk 0:02:45]}  Nd7 {[%clk 0:02:11]} 11. Nf3 {[%clk 0:02:43]}  Nxe5 {[%clk 0:02:10]} 12. Nxe5 {[%clk 0:02:43]}  Nf6 {[%clk 0:02:05]} 13. O-O {[%clk 0:02:42]}  Ng4 {[%clk 0:02:01]} 14. Nxg4 {[%clk 0:02:42]}  Bxg4 {[%clk 0:02:02]} 15. Bf5 {[%clk 0:02:41]}  Bxf5 {[%clk 0:02:01]} 16. Qxf5 {[%clk 0:02:42]}  g6 {[%clk 0:01:59]} 17. Qf4 {[%clk 0:02:39]}  Kg7 {[%clk 0:01:55]} 18. Rab1 {[%clk 0:02:37]}  Bd6 {[%clk 0:01:54]} 19. Qf3 {[%clk 0:02:37]}  f5 {[%clk 0:01:52]} 20. b4 {[%clk 0:02:36]}  g5 {[%clk 0:01:33]} 21. b5 {[%clk 0:02:33]}  g4 {[%clk 0:01:32]} 22. Qe2 {[%clk 0:02:28]}  Qh4 {[%clk 0:01:31]} 23. g3 {[%clk 0:02:29]}  Qh3 {[%clk 0:01:31]} 24. bxc6 {[%clk 0:02:18]}  bxc6 {[%clk 0:01:25]} 25. Rb7+ {[%clk 0:02:18]}  Kg6 {[%clk 0:01:23]} 26. Rc1 {[%clk 0:01:58]}  h5 {[%clk 0:01:21]} 27. Qf1 {[%clk 0:01:58]}  Qxf1+ {[%clk 0:01:15]} 28. Kxf1 {[%clk 0:01:59]}  Rfb8 {[%clk 0:01:08]} 29. Rcb1 {[%clk 0:01:55]}  h4 {[%clk 0:00:58]} 30. Rxb8 {[%clk 0:01:51]}  Rxb8 {[%clk 0:00:58]} 31. Rxb8 {[%clk 0:01:51]}  Bxb8 {[%clk 0:00:59]} 32. Ke2 {[%clk 0:01:50]}  Kf7 {[%clk 0:00:38]} 33. Kd3 {[%clk 0:01:48]}  Ke6 {[%clk 0:00:38]} 34. Na4 {[%clk 0:01:47]}  Bd6 {[%clk 0:00:31]} 35. Kc3 {[%clk 0:01:44]}  h3 {[%clk 0:00:25]} 36. Kb3 {[%clk 0:01:37]}  Kd7 {[%clk 0:00:19]} 37. Nb2 {[%clk 0:01:37]}  c5 {[%clk 0:00:19]} 38. dxc5 {[%clk 0:01:35]}  Bxc5 {[%clk 0:00:18]} 39. Nd3 {[%clk 0:01:35]}  Bd6 {[%clk 0:00:18]} 40. Kc3 {[%clk 0:01:33]}  Ke6 {[%clk 0:00:17]} 41. Kd4 {[%clk 0:01:32]}  a6 {[%clk 0:00:06]} 42. a4 {[%clk 0:01:30]}  a5 {[%clk 0:00:07]} 43. Ne1 {[%clk 0:01:21]}  Be5+ {[%clk 0:00:06]} 44. Kd3 {[%clk 0:01:15]}  Kd6 {[%clk 0:00:06]} 45. Nc2 {[%clk 0:01:15]}  Kc5 {[%clk 0:00:07]} 46. Ke2 {[%clk 0:01:05]}  Kc4 {[%clk 0:00:07]} 47. Kd2 {[%clk 0:01:06]}  Kb3 {[%clk 0:00:06]} 48. Ne1 {[%clk 0:01:05]}  Bc3+ {[%clk 0:00:06]} 49. Ke2 {[%clk 0:01:03]}  Bxe1 {[%clk 0:00:07]} 50. e4 {[%clk 0:01:04]}  dxe4 {[%clk 0:00:06]} 51. Kxe1 {[%clk 0:01:04]}  Kxa4 {[%clk 0:00:06]} 52. Ke2 {[%clk 0:01:05]}  Kb3 {[%clk 0:00:06]} 53. Ke3 {[%clk 0:01:05]}  a4 {[%clk 0:00:06]} 54. Kf4 {[%clk 0:01:06]}  a3 {[%clk 0:00:07]} 55. f3 {[%clk 0:01:07]}  exf3 {[%clk 0:00:06]} 56. Kxf5 {[%clk 0:01:07]}  f2 {[%clk 0:00:07]} 57. Kxg4 {[%clk 0:01:08]}  f1=Q {[%clk 0:00:07]} 58. Kh4 {[%clk 0:01:08]}  Qg2 {[%clk 0:00:08]} 59. g4 {[%clk 0:01:08]}  Qxh2 {[%clk 0:00:08]} 60. g5 {[%clk 0:01:09]}  Qg2 {[%clk 0:00:09]} 61. Kh5 {[%clk 0:01:09]}  h2 {[%clk 0:00:10]} 62. Kg6 {[%clk 0:01:09]}  h1=Q {[%clk 0:00:10]} 63. Kf6 {[%clk 0:01:10]}  Qhf1+ {[%clk 0:00:10]} 64. Kg6 {[%clk 0:01:10]}  Qxg5+ {[%clk 0:00:08]} 65. Kxg5 {[%clk 0:01:10]}  a2 {[%clk 0:00:08]} 66. Kh4 {[%clk 0:01:11]}  a1=Q {[%clk 0:00:07]} 67. Kg3 {[%clk 0:01:12]}  Qc3+ {[%clk 0:00:07]} 68. Kh2 {[%clk 0:01:12]}  Qd2+ {[%clk 0:00:07]} 69. Kg3 {[%clk 0:01:13]}  Qfd3+ {[%clk 0:00:07]} 70. Kg4 {[%clk 0:01:14]}  Qe4+ {[%clk 0:00:07]} 71. Kh5 {[%clk 0:01:14]}  Qdd5+ {[%clk 0:00:07]} 72. Kh6 {[%clk 0:01:14]}  Qee6+ {[%clk 0:00:08]} 73. Kh7 {[%clk 0:01:15]}  Qdd7+ {[%clk 0:00:09]} 74. Kh8 {[%clk 0:01:15]}  Qee8# {[%clk 0:00:10]} 0-1


[Site "https://www.chess.com"]

[Event "Titled Tuesday Blitz July 4 Late 2023"]
[White "Mazarini41"]
[Black "Dylag, Emilia"]
[BlackFideId "21805172"]
[WhiteElo "2505"]
[BlackElo "2318"]
[Result "1-0"]
[Round "5"]
[TimeControl "180+2"]
[Date "2023.07.04"]
[WhiteClock "0:00:25"]
[BlackClock "0:00:10"]
[Board "102"]

1. d4 {[%clk 0:02:53]}  Nf6 {[%clk 0:02:52]} 2. c4 {[%clk 0:02:52]}  e6 {[%clk 0:02:52]} 3. Nf3 {[%clk 0:02:52]}  d5 {[%clk 0:02:48]} 4. g3 {[%clk 0:02:52]}  dxc4 {[%clk 0:02:46]} 5. Bg2 {[%clk 0:02:51]}  Bb4+ {[%clk 0:02:46]} 6. Nbd2 {[%clk 0:02:47]}  O-O {[%clk 0:02:44]} 7. O-O {[%clk 0:02:46]}  b5 {[%clk 0:02:44]} 8. a4 {[%clk 0:02:43]}  c6 {[%clk 0:02:37]} 9. Ne5 {[%clk 0:02:25]}  Nd5 {[%clk 0:02:34]} 10. Qc2 {[%clk 0:02:19]}  Bb7 {[%clk 0:02:28]} 11. Ne4 {[%clk 0:02:17]}  f6 {[%clk 0:02:16]} 12. Nf3 {[%clk 0:02:14]}  Nd7 {[%clk 0:02:16]} 13. b3 {[%clk 0:02:11]}  cxb3 {[%clk 0:02:05]} 14. Qxb3 {[%clk 0:02:11]}  Qe7 {[%clk 0:02:02]} 15. h4 {[%clk 0:02:05]}  a5 {[%clk 0:01:59]} 16. h5 {[%clk 0:02:04]}  N7b6 {[%clk 0:01:53]} 17. h6 {[%clk 0:02:02]}  g6 {[%clk 0:01:53]} 18. Nc5 {[%clk 0:01:53]}  bxa4 {[%clk 0:01:43]} 19. Qc2 {[%clk 0:01:47]}  Bc8 {[%clk 0:01:25]} 20. e4 {[%clk 0:01:45]}  Nc3 {[%clk 0:01:23]} 21. e5 {[%clk 0:01:42]}  fxe5 {[%clk 0:01:20]} 22. Nxe5 {[%clk 0:01:38]}  Bxc5 {[%clk 0:01:15]} 23. dxc5 {[%clk 0:01:37]}  Nbd5 {[%clk 0:01:06]} 24. Bb2 {[%clk 0:01:17]}  Nb5 {[%clk 0:00:57]} 25. Nxc6 {[%clk 0:01:16]}  Qg5 {[%clk 0:00:54]} 26. Rxa4 {[%clk 0:00:57]}  Qxh6 {[%clk 0:00:42]} 27. Rh4 {[%clk 0:00:56]}  Qg5 {[%clk 0:00:39]} 28. Re1 {[%clk 0:00:47]}  Ra6 {[%clk 0:00:29]} 29. Bxd5 {[%clk 0:00:41]}  exd5 {[%clk 0:00:27]} 30. Ne7+ {[%clk 0:00:41]}  Kf7 {[%clk 0:00:20]} 31. Rxh7+ {[%clk 0:00:40]}  Ke8 {[%clk 0:00:20]} 32. Nc6+ {[%clk 0:00:26]}  Be6 {[%clk 0:00:10]} 33. Rxe6+ {[%clk 0:00:25]} 1-0


[Site "https://www.chess.com"]

[Event "Titled Tuesday Blitz July 4 Late 2023"]
[White "Zhang, Derek"]
[Black "Gerbelli Neto, Eduardo"]
[WhiteFideId "2087871"]
[BlackFideId "2103281"]
[WhiteElo "2499"]
[BlackElo "2313"]
[Result "0-1"]
[Round "5"]
[TimeControl "180+2"]
[Date "2023.07.04"]
[WhiteClock "0:00:05"]
[BlackClock "0:00:09"]
[Board "103"]

1. Nf3 {[%clk 0:02:57]}  Nf6 {[%clk 0:02:59]} 2. c4 {[%clk 0:02:57]}  c5 {[%clk 0:02:59]} 3. e3 {[%clk 0:02:58]}  d5 {[%clk 0:02:59]} 4. cxd5 {[%clk 0:02:57]}  Nxd5 {[%clk 0:03:00]} 5. Nc3 {[%clk 0:02:58]}  Nc6 {[%clk 0:02:58]} 6. Qc2 {[%clk 0:02:58]}  Ndb4 {[%clk 0:02:36]} 7. Qb1 {[%clk 0:02:58]}  g6 {[%clk 0:02:32]} 8. a3 {[%clk 0:02:58]}  Nd5 {[%clk 0:02:33]} 9. Be2 {[%clk 0:02:48]}  Bg7 {[%clk 0:02:32]} 10. Qc2 {[%clk 0:02:47]}  O-O {[%clk 0:02:26]} 11. O-O {[%clk 0:02:22]}  Nxc3 {[%clk 0:02:25]} 12. dxc3 {[%clk 0:02:17]}  Bf5 {[%clk 0:02:24]} 13. e4 {[%clk 0:02:17]}  Bd7 {[%clk 0:02:17]} 14. Be3 {[%clk 0:02:16]}  b6 {[%clk 0:02:16]} 15. Rfd1 {[%clk 0:02:04]}  Qc7 {[%clk 0:02:16]} 16. Rac1 {[%clk 0:01:55]}  Rad8 {[%clk 0:02:15]} 17. b4 {[%clk 0:01:55]}  Ne5 {[%clk 0:02:01]} 18. Bg5 {[%clk 0:01:42]}  Be6 {[%clk 0:01:49]} 19. Bh4 {[%clk 0:01:37]}  Nxf3+ {[%clk 0:01:47]} 20. Bxf3 {[%clk 0:01:37]}  Be5 {[%clk 0:01:44]} 21. Bg3 {[%clk 0:01:33]}  cxb4 {[%clk 0:01:35]} 22. cxb4 {[%clk 0:01:30]}  Qxc2 {[%clk 0:01:32]} 23. Rxc2 {[%clk 0:01:29]}  Rxd1+ {[%clk 0:01:31]} 24. Bxd1 {[%clk 0:01:29]}  Rd8 {[%clk 0:01:30]} 25. Be2 {[%clk 0:01:23]}  Bxg3 {[%clk 0:01:28]} 26. hxg3 {[%clk 0:01:22]}  Kf8 {[%clk 0:01:22]} 27. f3 {[%clk 0:01:20]}  Bb3 {[%clk 0:01:12]} 28. Rb2 {[%clk 0:01:01]}  Bd1 {[%clk 0:01:06]} 29. Bb5 {[%clk 0:00:54]}  a5 {[%clk 0:01:02]} 30. Kf2 {[%clk 0:00:50]}  a4 {[%clk 0:00:46]} 31. Ke3 {[%clk 0:00:41]}  Bb3 {[%clk 0:00:45]} 32. Rd2 {[%clk 0:00:41]}  Rc8 {[%clk 0:00:42]} 33. Kd4 {[%clk 0:00:16]}  Rc1 {[%clk 0:00:40]} 34. f4 {[%clk 0:00:14]}  e6 {[%clk 0:00:35]} 35. Kd3 {[%clk 0:00:07]}  Ke7 {[%clk 0:00:33]} 36. Ke2 {[%clk 0:00:05]}  Ra1 {[%clk 0:00:29]} 37. Rd7+ {[%clk 0:00:04]}  Kf8 {[%clk 0:00:29]} 38. Rb7 {[%clk 0:00:03]}  Rxa3 {[%clk 0:00:29]} 39. Rxb6 {[%clk 0:00:03]}  Ra2+ {[%clk 0:00:29]} 40. Kf3 {[%clk 0:00:03]}  Bd1+ {[%clk 0:00:29]} 41. Ke3 {[%clk 0:00:01]}  Rxg2 {[%clk 0:00:29]} 42. Rb8+ {[%clk 0:00:01]}  Kg7 {[%clk 0:00:29]} 43. Ra8 {[%clk 0:00:01]}  Rxg3+ {[%clk 0:00:29]} 44. Kd4 {[%clk 0:00:02]}  Rf3 {[%clk 0:00:27]} 45. Ke5 {[%clk 0:00:01]}  a3 {[%clk 0:00:22]} 46. Ra7 {[%clk 0:00:01]}  h5 {[%clk 0:00:18]} 47. Be8 {[%clk 0:00:01]}  h4 {[%clk 0:00:15]} 48. Bxf7 {[%clk 0:00:02]}  Kh6 {[%clk 0:00:16]} 49. Bxe6 {[%clk 0:00:02]}  Re3 {[%clk 0:00:12]} 50. Bg8 {[%clk 0:00:02]}  Kh5 {[%clk 0:00:11]} 51. Rh7+ {[%clk 0:00:02]}  Kg4 {[%clk 0:00:12]} 52. Bf7 {[%clk 0:00:02]}  g5 {[%clk 0:00:11]} 53. Be6+ {[%clk 0:00:03]}  Kg3 {[%clk 0:00:11]} 54. fxg5 {[%clk 0:00:04]}  Bc2 {[%clk 0:00:11]} 55. g6 {[%clk 0:00:05]}  Rxe4+ {[%clk 0:00:11]} 56. Kd6 {[%clk 0:00:06]}  Rxb4 {[%clk 0:00:10]} 57. Rh6 {[%clk 0:00:05]}  Rb6+ {[%clk 0:00:10]} 58. Ke7 {[%clk 0:00:06]}  Rb7+ {[%clk 0:00:08]} 59. Kf6 {[%clk 0:00:06]}  Bb3 {[%clk 0:00:08]} 60. Bc8 {[%clk 0:00:05]}  Rb6+ {[%clk 0:00:08]} 61. Kf5 {[%clk 0:00:06]}  a2 {[%clk 0:00:07]} 62. g7 {[%clk 0:00:06]}  Rb5+ {[%clk 0:00:08]} 63. Kf6 {[%clk 0:00:05]}  a1=Q+ {[%clk 0:00:08]} 64. Ke7 {[%clk 0:00:06]}  Qxg7+ {[%clk 0:00:08]} 65. Kd6 {[%clk 0:00:06]}  Qxh6+ {[%clk 0:00:09]} 66. Kc7 {[%clk 0:00:07]}  Qc6+ {[%clk 0:00:09]} 67. Kd8 {[%clk 0:00:05]}  Rb8 {[%clk 0:00:09]} 0-1


[Site "https://www.chess.com"]

[Event "Titled Tuesday Blitz July 4 Late 2023"]
[White "Hamitevici, Vladimir"]
[Black "Vaglio Munoz, Jaime"]
[WhiteFideId "13902393"]
[BlackFideId "6500145"]
[WhiteElo "2499"]
[BlackElo "2311"]
[Result "1-0"]
[Round "5"]
[TimeControl "180+2"]
[Date "2023.07.04"]
[WhiteClock "0:00:16"]
[BlackClock "0:00:19"]
[Board "104"]

1. c4 {[%clk 0:03:00]}  c6 {[%clk 0:02:54]} 2. Qa4 {[%clk 0:02:58]}  a6 {[%clk 0:02:50]} 3. Nc3 {[%clk 0:02:56]}  e6 {[%clk 0:02:49]} 4. d4 {[%clk 0:02:52]}  Nf6 {[%clk 0:02:47]} 5. e4 {[%clk 0:02:51]}  b5 {[%clk 0:02:35]} 6. cxb5 {[%clk 0:02:45]}  cxb5 {[%clk 0:02:36]} 7. Bxb5 {[%clk 0:02:42]}  Bb7 {[%clk 0:02:36]} 8. Bd3 {[%clk 0:02:39]}  Be7 {[%clk 0:02:31]} 9. Nge2 {[%clk 0:02:34]}  O-O {[%clk 0:02:30]} 10. O-O {[%clk 0:02:31]}  d6 {[%clk 0:02:26]} 11. Rd1 {[%clk 0:02:20]}  Nbd7 {[%clk 0:02:26]} 12. h3 {[%clk 0:02:13]}  Qb6 {[%clk 0:02:25]} 13. Be3 {[%clk 0:02:09]}  Qd8 {[%clk 0:01:51]} 14. b4 {[%clk 0:01:53]}  h6 {[%clk 0:01:50]} 15. Qb3 {[%clk 0:01:50]}  d5 {[%clk 0:01:45]} 16. e5 {[%clk 0:01:47]}  Ne8 {[%clk 0:01:42]} 17. a4 {[%clk 0:01:45]}  Nc7 {[%clk 0:01:41]} 18. a5 {[%clk 0:01:39]}  Bc6 {[%clk 0:01:39]} 19. Na4 {[%clk 0:01:24]}  Bxa4 {[%clk 0:01:37]} 20. Qxa4 {[%clk 0:01:20]}  Rb8 {[%clk 0:01:23]} 21. Rab1 {[%clk 0:01:13]}  Nb5 {[%clk 0:01:22]} 22. Rdc1 {[%clk 0:01:08]}  Rb7 {[%clk 0:01:20]} 23. Rc6 {[%clk 0:01:00]}  Nb8 {[%clk 0:01:18]} 24. Rc2 {[%clk 0:00:57]}  Qd7 {[%clk 0:01:18]} 25. Bxb5 {[%clk 0:00:43]}  Rxb5 {[%clk 0:01:16]} 26. Nc3 {[%clk 0:00:41]}  Rb7 {[%clk 0:01:07]} 27. Qxd7 {[%clk 0:00:41]}  Nxd7 {[%clk 0:01:07]} 28. b5 {[%clk 0:00:42]}  axb5 {[%clk 0:01:06]} 29. Rxb5 {[%clk 0:00:41]}  Rfb8 {[%clk 0:01:05]} 30. Rcb2 {[%clk 0:00:27]}  Rxb5 {[%clk 0:01:00]} 31. Rxb5 {[%clk 0:00:28]}  Bd8 {[%clk 0:00:54]} 32. Bd2 {[%clk 0:00:22]}  Ra8 {[%clk 0:00:48]} 33. Na4 {[%clk 0:00:22]}  f6 {[%clk 0:00:46]} 34. f4 {[%clk 0:00:20]}  fxe5 {[%clk 0:00:45]} 35. fxe5 {[%clk 0:00:21]}  Kf7 {[%clk 0:00:43]} 36. Kf2 {[%clk 0:00:20]}  Ke8 {[%clk 0:00:42]} 37. Ke2 {[%clk 0:00:21]}  g5 {[%clk 0:00:41]} 38. Kf3 {[%clk 0:00:20]}  Nb8 {[%clk 0:00:39]} 39. Nb6 {[%clk 0:00:16]}  Ra6 {[%clk 0:00:36]} 40. Nxd5 {[%clk 0:00:15]}  Nc6 {[%clk 0:00:36]} 41. Nb4 {[%clk 0:00:14]}  Nxd4+ {[%clk 0:00:35]} 42. Ke4 {[%clk 0:00:15]}  Nxb5 {[%clk 0:00:31]} 43. Nxa6 {[%clk 0:00:15]}  Kd7 {[%clk 0:00:30]} 44. Nc5+ {[%clk 0:00:15]}  Kc6 {[%clk 0:00:30]} 45. Nxe6 {[%clk 0:00:15]}  Be7 {[%clk 0:00:29]} 46. Nd4+ {[%clk 0:00:15]}  Nxd4 {[%clk 0:00:29]} 47. Kxd4 {[%clk 0:00:16]}  Bc5+ {[%clk 0:00:28]} 48. Ke4 {[%clk 0:00:15]}  g4 {[%clk 0:00:25]} 49. hxg4 {[%clk 0:00:15]}  Bf8 {[%clk 0:00:24]} 50. Kf5 {[%clk 0:00:14]}  Kd5 {[%clk 0:00:23]} 51. e6 {[%clk 0:00:14]}  Be7 {[%clk 0:00:20]} 52. Bxh6 {[%clk 0:00:14]}  Bd8 {[%clk 0:00:19]} 53. Bg5 {[%clk 0:00:14]}  Bxa5 {[%clk 0:00:19]} 54. e7 {[%clk 0:00:14]}  Bb4 {[%clk 0:00:19]} 55. e8=Q {[%clk 0:00:15]}  Bd6 {[%clk 0:00:19]} 56. Qe6+ {[%clk 0:00:16]}  Kc6 {[%clk 0:00:19]} 57. Bf4 {[%clk 0:00:16]}  Kb5 {[%clk 0:00:19]} 58. Qxd6 {[%clk 0:00:17]}  Kc4 {[%clk 0:00:20]} 59. Ke4 {[%clk 0:00:16]}  Kb3 {[%clk 0:00:19]} 60. Qc5 {[%clk 0:00:17]}  Kb2 {[%clk 0:00:18]} 61. Qc4 {[%clk 0:00:17]}  Ka3 {[%clk 0:00:17]} 62. Qb5 {[%clk 0:00:17]}  Ka2 {[%clk 0:00:17]} 63. Kd3 {[%clk 0:00:17]}  Ka1 {[%clk 0:00:18]} 64. Kc2 {[%clk 0:00:16]}  Ka2 {[%clk 0:00:19]} 65. Qa4# {[%clk 0:00:16]} 1-0


[Site "https://www.chess.com"]

[Event "Titled Tuesday Blitz July 4 Late 2023"]
[White "Kovacevic, Radmila"]
[Black "only_strong_moves"]
[WhiteFideId "933171"]
[WhiteElo "2247"]
[BlackElo "2493"]
[Result "0-1"]
[Round "5"]
[TimeControl "180+2"]
[Date "2023.07.04"]
[WhiteClock "0:00:09"]
[BlackClock "0:00:18"]
[Board "106"]

1. e4 {[%clk 0:02:55]}  c5 {[%clk 0:02:59]} 2. Nf3 {[%clk 0:02:54]}  Nc6 {[%clk 0:02:58]} 3. Bc4 {[%clk 0:02:51]}  e6 {[%clk 0:02:58]} 4. O-O {[%clk 0:02:51]}  Nge7 {[%clk 0:02:55]} 5. Nc3 {[%clk 0:02:48]}  Ng6 {[%clk 0:02:54]} 6. Re1 {[%clk 0:02:44]}  Be7 {[%clk 0:02:50]} 7. d4 {[%clk 0:02:26]}  cxd4 {[%clk 0:02:49]} 8. Nxd4 {[%clk 0:02:16]}  O-O {[%clk 0:02:50]} 9. g3 {[%clk 0:02:14]}  a6 {[%clk 0:02:45]} 10. Nxc6 {[%clk 0:02:11]}  dxc6 {[%clk 0:02:41]} 11. f4 {[%clk 0:02:09]}  b5 {[%clk 0:02:40]} 12. Bd3 {[%clk 0:02:07]}  c5 {[%clk 0:02:37]} 13. e5 {[%clk 0:02:02]}  Ra7 {[%clk 0:02:33]} 14. Be3 {[%clk 0:01:56]}  Rd7 {[%clk 0:02:32]} 15. Qe2 {[%clk 0:01:53]}  Bb7 {[%clk 0:02:30]} 16. Be4 {[%clk 0:01:52]}  Qa8 {[%clk 0:02:27]} 17. Qg2 {[%clk 0:01:43]}  Bxe4 {[%clk 0:01:52]} 18. Nxe4 {[%clk 0:01:44]}  Qd5 {[%clk 0:01:52]} 19. h4 {[%clk 0:01:24]}  Rfd8 {[%clk 0:01:44]} 20. h5 {[%clk 0:01:23]}  Nf8 {[%clk 0:01:44]} 21. b3 {[%clk 0:01:10]}  f5 {[%clk 0:01:39]} 22. exf6 {[%clk 0:01:00]}  Bxf6 {[%clk 0:01:35]} 23. Rac1 {[%clk 0:00:42]}  Bd4 {[%clk 0:01:32]} 24. c3 {[%clk 0:00:28]}  Bxe3+ {[%clk 0:01:31]} 25. Rxe3 {[%clk 0:00:29]}  h6 {[%clk 0:01:27]} 26. Rce1 {[%clk 0:00:28]}  c4 {[%clk 0:01:21]} 27. g4 {[%clk 0:00:24]}  cxb3 {[%clk 0:01:02]} 28. axb3 {[%clk 0:00:25]}  Rf7 {[%clk 0:00:55]} 29. g5 {[%clk 0:00:24]}  Kh8 {[%clk 0:00:52]} 30. Rf1 {[%clk 0:00:20]}  Qxb3 {[%clk 0:00:36]} 31. gxh6 {[%clk 0:00:18]}  gxh6 {[%clk 0:00:36]} 32. Kh2 {[%clk 0:00:16]}  Rg7 {[%clk 0:00:33]} 33. Ng5 {[%clk 0:00:15]}  Qc4 {[%clk 0:00:20]} 34. Qc2 {[%clk 0:00:13]}  hxg5 {[%clk 0:00:18]} 35. fxg5 {[%clk 0:00:13]}  Qh4+ {[%clk 0:00:18]} 36. Rh3 {[%clk 0:00:12]}  Qxg5 {[%clk 0:00:18]} 37. h6 {[%clk 0:00:12]}  Rd2+ {[%clk 0:00:19]} 38. Kh1 {[%clk 0:00:09]}  Qg2# {[%clk 0:00:18]} 0-1


[Site "https://www.chess.com"]

[Event "Titled Tuesday Blitz July 4 Late 2023"]
[White "Avila Rodriguez, Joshua Ad"]
[Black "Gardezi, Arsal"]
[WhiteFideId "5126444"]
[BlackFideId "30949521"]
[WhiteElo "2492"]
[BlackElo "2220"]
[Result "0-1"]
[Round "5"]
[TimeControl "180+2"]
[Date "2023.07.04"]
[WhiteClock "0:00:09"]
[BlackClock "0:00:29"]
[Board "107"]

1. c4 {[%clk 0:02:53]}  Nf6 {[%clk 0:02:57]} 2. Nf3 {[%clk 0:02:52]}  c6 {[%clk 0:02:51]} 3. g3 {[%clk 0:02:52]}  d5 {[%clk 0:02:46]} 4. Bg2 {[%clk 0:02:51]}  g6 {[%clk 0:02:45]} 5. O-O {[%clk 0:02:50]}  Bg7 {[%clk 0:02:45]} 6. d4 {[%clk 0:02:47]}  O-O {[%clk 0:02:45]} 7. b3 {[%clk 0:02:43]}  Ne4 {[%clk 0:02:40]} 8. Bb2 {[%clk 0:02:39]}  Nd7 {[%clk 0:02:38]} 9. Nc3 {[%clk 0:02:34]}  Ndf6 {[%clk 0:02:36]} 10. Ne5 {[%clk 0:02:30]}  Bf5 {[%clk 0:02:34]} 11. f3 {[%clk 0:02:19]}  Nxc3 {[%clk 0:02:33]} 12. Bxc3 {[%clk 0:02:19]}  Nd7 {[%clk 0:02:11]} 13. e4 {[%clk 0:01:46]}  Be6 {[%clk 0:02:10]} 14. cxd5 {[%clk 0:01:32]}  cxd5 {[%clk 0:02:10]} 15. f4 {[%clk 0:01:07]}  dxe4 {[%clk 0:01:54]} 16. Bxe4 {[%clk 0:01:07]}  Nf6 {[%clk 0:01:46]} 17. Bxb7 {[%clk 0:01:01]}  Rb8 {[%clk 0:01:36]} 18. Bg2 {[%clk 0:00:55]}  Rc8 {[%clk 0:01:32]} 19. Bb2 {[%clk 0:00:54]}  Bd5 {[%clk 0:01:24]} 20. Rc1 {[%clk 0:00:45]}  Bxg2 {[%clk 0:01:24]} 21. Kxg2 {[%clk 0:00:46]}  Nd5 {[%clk 0:01:20]} 22. Qf3 {[%clk 0:00:45]}  e6 {[%clk 0:01:17]} 23. Ba3 {[%clk 0:00:29]}  Qa5 {[%clk 0:01:05]} 24. Bxf8 {[%clk 0:00:25]}  Rxc1 {[%clk 0:01:03]} 25. Bxg7 {[%clk 0:00:20]}  Rxf1 {[%clk 0:00:34]} 26. Kxf1 {[%clk 0:00:21]}  Kxg7 {[%clk 0:00:34]} 27. Qe2 {[%clk 0:00:19]}  Qc3 {[%clk 0:00:33]} 28. Kf2 {[%clk 0:00:18]}  Qxd4+ {[%clk 0:00:33]} 29. Kg2 {[%clk 0:00:18]}  Ne3+ {[%clk 0:00:33]} 30. Kh3 {[%clk 0:00:13]}  Qe4 {[%clk 0:00:30]} 31. Qb5 {[%clk 0:00:09]}  Qg2+ {[%clk 0:00:29]} 32. Kh4 {[%clk 0:00:09]}  Qxh2+ {[%clk 0:00:29]} 33. Kg5 {[%clk 0:00:09]}  Qh6# {[%clk 0:00:29]} 0-1


[Site "https://www.chess.com"]

[Event "Titled Tuesday Blitz July 4 Late 2023"]
[White "Curtis, John"]
[Black "Kovalevsky, Stanislav"]
[WhiteFideId "3200256"]
[BlackFideId "13508598"]
[WhiteElo "2126"]
[BlackElo "2492"]
[Result "0-1"]
[Round "5"]
[TimeControl "180+2"]
[Date "2023.07.04"]
[WhiteClock "0:00:03"]
[BlackClock "0:00:14"]
[Board "108"]

1. e4 {[%clk 0:01:17]}  e6 {[%clk 0:02:55]} 2. d4 {[%clk 0:01:14]}  d5 {[%clk 0:02:56]} 3. Nc3 {[%clk 0:01:13]}  dxe4 {[%clk 0:02:56]} 4. Nxe4 {[%clk 0:01:12]}  Nf6 {[%clk 0:02:57]} 5. Nxf6+ {[%clk 0:01:12]}  gxf6 {[%clk 0:02:57]} 6. Nf3 {[%clk 0:01:12]}  Nc6 {[%clk 0:02:58]} 7. Bc4 {[%clk 0:01:11]}  Ne7 {[%clk 0:02:58]} 8. O-O {[%clk 0:01:10]}  Bd7 {[%clk 0:02:58]} 9. Qe2 {[%clk 0:01:07]}  Bc6 {[%clk 0:02:58]} 10. Bd3 {[%clk 0:01:06]}  Qd6 {[%clk 0:02:46]} 11. Bb5 {[%clk 0:01:05]}  Rg8 {[%clk 0:02:41]} 12. a4 {[%clk 0:01:02]}  O-O-O {[%clk 0:02:33]} 13. Bxc6 {[%clk 0:01:01]}  Qxc6 {[%clk 0:02:31]} 14. c3 {[%clk 0:00:58]}  Nf5 {[%clk 0:02:28]} 15. g3 {[%clk 0:00:57]}  h5 {[%clk 0:02:25]} 16. Re1 {[%clk 0:00:54]}  h4 {[%clk 0:02:21]} 17. Qe4 {[%clk 0:00:53]}  hxg3 {[%clk 0:02:01]} 18. hxg3 {[%clk 0:00:52]}  Rd5 {[%clk 0:01:42]} 19. Kg2 {[%clk 0:00:46]}  Bd6 {[%clk 0:01:41]} 20. Bd2 {[%clk 0:00:41]}  Bxg3 {[%clk 0:01:38]} 21. Kf1 {[%clk 0:00:29]}  Qc4+ {[%clk 0:01:20]} 22. Qe2 {[%clk 0:00:28]}  Qb3 {[%clk 0:01:19]} 23. Ra3 {[%clk 0:00:25]}  Qxb2 {[%clk 0:01:17]} 24. Bc1 {[%clk 0:00:25]}  Qxe2+ {[%clk 0:01:12]} 25. Kxe2 {[%clk 0:00:25]}  Bd6 {[%clk 0:01:11]} 26. Rb3 {[%clk 0:00:24]}  c5 {[%clk 0:01:08]} 27. c4 {[%clk 0:00:23]}  Nxd4+ {[%clk 0:01:08]} 28. Nxd4 {[%clk 0:00:24]}  Rxd4 {[%clk 0:01:08]} 29. Rc3 {[%clk 0:00:23]}  Re4+ {[%clk 0:01:05]} 30. Be3 {[%clk 0:00:21]}  f5 {[%clk 0:01:06]} 31. f3 {[%clk 0:00:20]}  Rh4 {[%clk 0:01:00]} 32. Rf1 {[%clk 0:00:19]}  Rg2+ {[%clk 0:00:59]} 33. Rf2 {[%clk 0:00:19]}  Rxf2+ {[%clk 0:00:52]} 34. Bxf2 {[%clk 0:00:19]}  Rh2 {[%clk 0:00:52]} 35. Kf1 {[%clk 0:00:18]}  Kc7 {[%clk 0:00:42]} 36. Kg1 {[%clk 0:00:17]}  Rh8 {[%clk 0:00:36]} 37. a5 {[%clk 0:00:17]}  Rg8+ {[%clk 0:00:32]} 38. Kf1 {[%clk 0:00:17]}  Rd8 {[%clk 0:00:32]} 39. Rd3 {[%clk 0:00:15]}  Be7 {[%clk 0:00:29]} 40. Bg3+ {[%clk 0:00:14]}  Kc8 {[%clk 0:00:29]} 41. Rxd8+ {[%clk 0:00:14]}  Bxd8 {[%clk 0:00:28]} 42. Be1 {[%clk 0:00:13]}  Kd7 {[%clk 0:00:27]} 43. Ke2 {[%clk 0:00:14]}  e5 {[%clk 0:00:26]} 44. Bc3 {[%clk 0:00:13]}  Ke6 {[%clk 0:00:27]} 45. Kd3 {[%clk 0:00:13]}  Bc7 {[%clk 0:00:23]} 46. Bd2 {[%clk 0:00:12]}  a6 {[%clk 0:00:20]} 47. Be1 {[%clk 0:00:13]}  Kf6 {[%clk 0:00:20]} 48. Bc3 {[%clk 0:00:12]}  Kg5 {[%clk 0:00:20]} 49. Bd2+ {[%clk 0:00:12]}  Kh4 {[%clk 0:00:20]} 50. Ke3 {[%clk 0:00:11]}  Kg3 {[%clk 0:00:19]} 51. Be1+ {[%clk 0:00:11]}  Kg2 {[%clk 0:00:19]} 52. Ke2 {[%clk 0:00:11]}  e4 {[%clk 0:00:19]} 53. fxe4 {[%clk 0:00:10]}  fxe4 {[%clk 0:00:20]} 54. Bf2 {[%clk 0:00:08]}  Bxa5 {[%clk 0:00:17]} 55. Bxc5 {[%clk 0:00:08]}  f5 {[%clk 0:00:18]} 56. Bd6 {[%clk 0:00:05]}  Bb6 {[%clk 0:00:17]} 57. c5 {[%clk 0:00:05]}  Ba7 {[%clk 0:00:18]} 58. Ke3 {[%clk 0:00:05]}  a5 {[%clk 0:00:16]} 59. Kf4 {[%clk 0:00:05]}  a4 {[%clk 0:00:15]} 60. c6 {[%clk 0:00:06]}  bxc6 {[%clk 0:00:15]} 61. Kxf5 {[%clk 0:00:06]}  e3 {[%clk 0:00:15]} 62. Bc5 {[%clk 0:00:03]}  Bxc5 {[%clk 0:00:14]} 0-1


[Site "https://www.chess.com"]